bitfinex/quotes_ETHUSD_20220309
["timestamp","ask_amount","ask_price","bid_price","bid_amount"]
[1646823703228,3.50838987,2762.4,2762.1,2.140508]
[1646823703425,3.50838987,2762.4,2762.1,2.11134]
[1646823704025,3.50580376,2762.4,2762.1,2.11134]
[1646823704325,3.50838987,2762.4,2762.1,2.11134]
[1646823705325,3.50580376,2762.4,2762.1,2.11134]
[1646823705525,4.50838987,2762.4,2762.1,2.11134]
[1646823706530,4.50580376,2762.4,2762.1,2.11134]
[1646823706795,4.50838987,2762.4,2762.1,2.11134]
[1646823707784,4.50580376,2762.4,2762.1,2.11134]
[1646823707983,4.50838987,2762.4,2762.1,2.11134]
[1646823708585,0.02497632,2762.5,2762.2,4.69180949]
[1646823708784,0.02497632,2762.5,2762.4,0.029168]
[1646823709183,0.01043788,2762.8,2762.4,1.81106]
[1646823709385,0.01043788,2762.8,2762.4,1.840228]
[1646823709986,0.01043788,2762.8,2762.4,1.81106]
[1646823710186,1.0572447,2762.6,2762.5,0.9055248]
[1646823710825,1.0572447,2762.6,2762.4,2.11106]
[1646823711029,0.91601788,2762.8,2762.4,1.81106]
[1646823711628,0.91601788,2762.8,2762.5,0.029168]
[1646823711828,0.91601788,2762.8,2762.4,2.745802]
[1646823712028,0.01043788,2762.8,2762.4,2.74833133]
[1646823712227,0.01043788,2762.8,2762.4,7.14914657]
[1646823712428,0.01043788,2762.8,2762.6,0.029168]
[1646823712629,0.01043788,2762.8,2762.6,3.529168]
[1646823712831,0.02087576,2762.8,2762.7,0.029168]
[1646823713031,0.02087576,2762.8,2762.7,0.934628]
[1646823713435,0.700302,2763.0,2762.9,0.3625]
[1646823713436,0.04175152,2763.0,2762.9,0.3625]
[1646823713640,0.02311024,2763.1,2763.0,6.3625]
[1646823713839,0.02311024,2763.1,2763.0,10.191668]
[1646823714035,0.17964612,2763.9,2763.3,0.90506]
[1646823714281,0.22148292,2763.9,2763.4,0.029168]
[1646823714483,1.08996932,2763.9,2763.5,0.9342497]
[1646823714682,0.85919804,2764.3,2763.7,5.5]
[1646823714884,1.8858428,2764.4,2763.8,3.57988186]
[1646823714885,0.0187584,2764.4,2763.8,3.57988186]
[1646823715082,0.0305515,2764.8,2763.9,9.15969]
[1646823715287,0.55205807,2765.3,2763.9,9.15969]
[1646823715288,2.5922907,2765.7,2764.5,6.0]
[1646823715589,0.05974142,2765.4,2765.2,0.029168]
[1646823715785,0.00974142,2765.4,2765.3,0.029168]
[1646823716190,0.00974142,2765.4,2765.3,0.00252933]
[1646823716584,0.00974142,2765.4,2764.2,3.5]
[1646823716585,3.5,2765.3,2764.2,3.5]
[1646823716784,3.5,2765.3,2764.1,0.029168]
[1646823716785,6.95192468,2765.1,2764.1,0.029168]
[1646823716987,6.95192468,2765.1,2763.8,0.36452933]
[1646823716988,0.90525,2764.8,2763.8,0.00252933]
[1646823717187,3.5,2764.7,2763.8,0.00505866]
[1646823717386,0.14871493,2764.7,2763.8,0.00505866]
[1646823717584,1.0,2764.7,2763.8,0.00505866]
[1646823717785,3.64871493,2764.6,2763.8,0.00505866]
[1646823718021,1.13018531,2763.9,2763.8,0.00505866]
[1646823718221,2.03556531,2763.9,2763.8,0.00758799]
[1646823718825,5.03556531,2763.9,2763.8,0.00758799]
[1646823719023,5.03556531,2763.9,2763.2,1.81094]
[1646823719222,5.03556531,2763.9,2762.9,3.5]
[1646823719223,3.5,2763.8,2762.9,3.5]
[1646823719422,3.5,2763.8,2762.6,1.18082933]
[1646823719423,0.90566,2763.6,2763.1,0.00252933]
[1646823719622,3.5,2763.5,2763.1,0.00252933]
[1646823719822,4.5,2763.5,2763.1,0.00252933]
[1646823720024,1.0,2763.5,2763.1,0.00252933]
[1646823720220,0.90566,2763.6,2763.1,0.00252933]
[1646823720422,0.0752,2763.3,2763.1,0.00252933]
[1646823720625,1.85390244,2763.2,2763.1,0.00252933]
[1646823720826,1.85390244,2763.2,2762.9,1.80865799]
[1646823721526,1.85390244,2763.2,2763.0,0.00252933]
[1646823722181,1.0752,2763.3,2763.0,0.00252933]
[1646823722380,1.0752,2763.3,2763.0,0.00505866]
[1646823722580,0.0752,2763.3,2763.0,0.00505866]
[1646823722980,0.0752,2763.3,2763.1,0.90544]
[1646823723780,0.26430204,2763.3,2763.1,0.90544]
[1646823724181,0.26430204,2763.3,2763.1,1.81085]
[1646823724382,0.18910204,2763.3,2763.1,0.90544]
[1646823724583,0.00096,2763.8,2763.1,1.20544]
[1646823724782,0.00297791,2763.9,2763.1,1.20544]
[1646823724984,0.00297791,2763.9,2763.1,0.90544]
[1646823725282,0.92542275,2763.5,2763.1,0.90544]
[1646823725534,0.90549,2763.4,2763.2,2.71539]
[1646823726533,0.90549,2763.4,2763.1,1.20796933]
[1646823726729,3.5,2763.3,2763.1,0.00252933]
[1646823727128,4.5,2763.3,2763.1,0.00252933]
[1646823728429,1.0,2763.3,2763.1,0.00252933]
[1646823728831,4.90549,2763.4,2763.1,0.00252933]
[1646823729036,1.90549,2763.4,2763.1,0.90806933]
[1646823729271,0.90549,2763.4,2763.1,0.90806933]
[1646823729470,1.474168,2764.2,2763.1,0.90806933]
[1646823729471,1.029168,2764.2,2763.2,6.0]
[1646823729675,1.029168,2764.2,2763.3,4.4052393]
[1646823729676,0.00927764,2763.9,2763.3,4.4052393]
[1646823729871,1.0752,2764.2,2763.5,1.26763]
[1646823730071,1.0752,2764.2,2763.5,4.40513]
[1646823730273,1.0752,2764.2,2763.6,0.3]
[1646823730473,1.0752,2764.2,2763.7,1.80988]
[1646823730474,0.0752,2764.2,2763.7,1.80988]
[1646823730676,0.0252,2764.2,2763.8,3.5]
[1646823730877,0.0252,2764.2,2763.7,2.10988]
[1646823731079,0.0252,2764.2,2764.0,1.81006]
[1646823731280,0.0252,2764.2,2764.0,2.11006]
[1646823731879,0.0252,2764.2,2764.0,2.11258933]
[1646823732883,0.0252,2764.2,2764.0,2.11511866]
[1646823733737,0.0252,2764.2,2764.0,3.02014016]
[1646823733938,0.0252,2764.2,2764.0,3.02266949]
[1646823734537,0.03714126,2764.2,2764.0,3.02266949]
[1646823734737,0.07350306,2764.2,2764.0,3.02266949]
[1646823734938,0.07350306,2764.2,2764.0,3.02519882]
[1646823735138,0.07350306,2764.2,2764.0,3.02266949]
[1646823735536,0.0709608,2764.2,2764.0,3.02266949]
[1646823735742,0.07350306,2764.2,2764.0,3.02266949]
[1646823735942,0.04830306,2764.2,2764.0,3.02266949]
[1646823736141,0.04830306,2764.2,2764.0,6.52266949]
[1646823736142,0.04577373,2764.2,2764.0,6.52266949]
[1646823736342,0.04577373,2764.2,2764.0,3.02266949]
[1646823736772,0.04323147,2764.2,2764.1,0.93250971]
[1646823736976,0.04577373,2764.2,2764.1,4.43250971]
[1646823737774,0.04323147,2764.2,2764.1,0.93250971]
[1646823737974,0.04323147,2764.2,2764.1,4.43250971]
[1646823738976,0.41665411,2765.0,2764.1,4.43250971]
[1646823738977,0.90483,2765.1,2764.3,7.26734]
[1646823739178,1.87064818,2765.4,2764.5,1.26725]
[1646823739179,0.03613818,2765.4,2764.5,1.26725]
[1646823739377,0.03613818,2765.4,2764.6,3.5]
[1646823739980,0.03613818,2765.4,2764.7,1.20531712]
[1646823739981,1.21942395,2765.3,2764.7,1.20531712]
[1646823740178,1.21942395,2765.3,2764.6,3.5]
[1646823740381,1.21942395,2765.3,2764.8,1.8092967]
[1646823740628,0.0082795,2765.3,2764.9,0.90471]
[1646823741627,0.0082795,2765.3,2764.9,2.05767571]
[1646823742027,0.0082795,2765.3,2765.0,1.80936]
[1646823742236,0.0082795,2765.3,2765.0,3.61874]
[1646823742428,0.0082795,2765.3,2765.1,0.9046763]
[1646823742828,0.0082795,2765.3,2765.1,1.2046763]
[1646823743428,0.0082795,2765.3,2765.1,2.1093463]
[1646823743832,3.4541241,2765.7,2765.1,5.6093463]
[1646823744032,3.4541241,2765.7,2765.1,2.1093463]
[1646823744033,0.01759584,2765.6,2765.1,2.1093463]
[1646823744277,0.00248507,2765.3,2765.1,2.1093463]
[1646823744475,0.01759584,2765.5,2765.2,0.90464]
[1646823744677,2.5494641,2765.7,2765.2,0.90464]
[1646823744881,1.02205119,2765.3,2765.1,0.3]
[1646823745276,2.83180119,2765.3,2765.0,2.10938]
[1646823745681,3.83180119,2765.3,2765.0,2.10938]
[1646823745880,0.90487,2765.4,2765.0,2.10938]
[1646823746089,0.00797004,2765.9,2765.2,1.80941]
[1646823746680,2.5,2765.7,2765.2,1.80941]
[1646823746883,2.8631,2765.7,2765.2,1.80941]
[1646823747082,0.99906975,2765.5,2765.2,1.80941]
[1646823747485,2.8631,2765.7,2765.2,1.80941]
[1646823748523,2.8631,2765.7,2765.2,2.714106]
[1646823749122,0.00247886,2765.6,2765.2,6.214106]
[1646823749321,0.00247886,2765.6,2765.3,0.3]
[1646823749521,0.00247886,2765.6,2765.3,1.20465]
[1646823749925,2.8631,2765.7,2765.3,1.20465]
[1646823750326,0.00247886,2765.6,2765.3,1.20465]
[1646823750527,0.00247886,2765.6,2765.4,1.12922944]
[1646823750729,0.00247886,2765.6,2765.3,1.20465]
[1646823751127,3.76777,2765.7,2765.3,1.20465]
[1646823751330,2.8631,2765.7,2765.3,4.70465]
[1646823751529,2.8631,2765.7,2765.3,1.20465]
[1646823751769,2.8631,2765.7,2765.3,4.15568142]
[1646823751977,0.00797004,2765.9,2765.4,6.3]
[1646823752177,0.00797004,2765.9,2765.5,0.9045531]
[1646823752378,0.00797004,2765.9,2765.6,0.90464]
[1646823752577,0.19688361,2765.9,2765.6,0.90464]
[1646823752977,0.19688361,2765.9,2765.5,0.3]
[1646823753379,1.20456,2766.0,2765.6,0.9047]
[1646823753380,0.90456,2766.0,2765.6,0.9047]
[1646823753580,0.01594008,2765.9,2765.6,0.9047]
[1646823753978,0.01594008,2765.9,2765.5,0.3]
[1646823754378,0.01594008,2765.9,2765.4,2.10934]
[1646823754981,1.18380201,2765.6,2765.4,2.10934]
[1646823755185,2.08855201,2765.6,2765.4,2.10934]
[1646823756731,2.08855201,2765.6,2763.3,15.51989888]
[1646823756732,3.5,2765.5,2764.6,2.1092117]
[1646823756935,3.5,2765.5,2764.8,0.90494]
[1646823756936,0.90497,2765.3,2764.8,0.90494]
[1646823757131,0.90244067,2765.3,2764.8,0.90494]
[1646823757631,1.00096,2765.8,2764.8,1.79515972]
[1646823757831,0.00248548,2765.4,2764.8,2.69998972]
[1646823758035,0.00248548,2765.4,2765.0,0.9046153]
[1646823758230,0.00248548,2765.4,2765.0,1.8092453]
[1646823758431,0.00248548,2765.4,2765.0,2.1092453]
[1646823758631,0.00096,2765.8,2765.1,1.80926]
[1646823758632,0.90472,2765.6,2765.1,1.80926]
[1646823758831,0.00248561,2765.4,2765.1,1.80926]
[1646823759032,0.00248561,2765.4,2765.1,2.10926]
[1646823759480,0.00248561,2765.4,2765.1,0.3]
[1646823759682,0.00248561,2765.4,2765.0,2.1092453]
[1646823759881,0.0966852,2765.5,2765.0,2.1092453]
[1646823760080,0.00248566,2765.4,2765.0,2.1092453]
[1646823760687,0.0966852,2765.1,2765.0,2.1092453]
[1646823760881,0.0966852,2765.3,2765.0,2.1092453]
[1646823761882,0.00248561,2765.4,2765.0,2.1092453]
[1646823762082,0.00248561,2765.4,2765.1,0.3]
[1646823762280,0.0966852,2765.6,2765.1,1.20468]
[1646823762482,0.0966852,2765.6,2765.1,1.50468]
[1646823762682,0.00248557,2765.4,2765.1,1.50468]
[1646823763430,0.0966852,2765.6,2765.2,1.00150748]
[1646823763631,0.00248566,2765.4,2765.2,3.71544378]
[1646823763832,0.00248566,2765.4,2765.2,3.0139363]
[1646823764630,0.0966852,2765.6,2765.2,3.0139363]
[1646823764835,0.0966852,2765.6,2765.3,1.80941]
[1646823765031,0.0024857,2765.4,2765.3,1.80941]
[1646823765230,0.0024857,2765.4,2765.3,2.10941]
[1646823765433,0.0024857,2765.4,2765.3,0.3]
[1646823765630,0.0024857,2765.4,2765.2,3.9186163]
[1646823765837,0.0966852,2765.6,2765.2,3.9186163]
[1646823766033,0.0024857,2765.5,2765.2,3.0139363]
[1646823766435,0.0966852,2765.4,2765.2,0.3]
[1646823766632,0.0966852,2765.4,2765.0,1.9144819]
[1646823766892,0.0966852,2765.4,2765.0,0.105]
[1646823767292,0.9829998,2765.1,2765.0,2.81938]
[1646823767889,1.08133497,2765.3,2765.0,2.81938]
[1646823768090,1.08133497,2765.3,2765.0,4.9289472]
[1646823768495,0.00248548,2765.4,2765.0,4.9289472]
[1646823768893,0.00248548,2765.4,2765.1,0.9047238]
[1646823769190,0.00248548,2765.4,2765.1,2.1094638]
[1646823769391,0.01690008,2765.9,2765.1,2.1094638]
[1646823769591,0.01594008,2765.9,2765.3,1.80956]
[1646823769792,0.00248566,2765.4,2765.3,2.10956]
[1646823770628,2.10464251,2765.5,2765.3,2.10956]
[1646823771031,2.10712821,2765.5,2765.3,2.10956]
[1646823771830,7.0,2765.4,2764.6,0.209868]
[1646823772031,1.81007,2765.3,2764.6,0.00398009]
[1646823772234,3.5,2765.2,2764.6,0.00398009]
[1646823772430,3.5,2765.1,2764.0,0.00505866]
[1646823772632,3.5,2765.0,2764.0,0.00505866]
[1646823772831,3.0,2764.9,2764.0,0.00505866]
[1646823773037,3.445,2764.9,2764.0,0.00505866]
[1646823773231,3.445,2764.9,2764.1,0.1807]
[1646823773232,1.0,2764.9,2764.1,0.1807]
[1646823773431,1.0,2764.9,2764.1,1.99049]
[1646823773635,0.00096,2765.3,2764.1,1.99049]
[1646823773831,8.09337301,2765.4,2764.8,0.89889035]
[1646823774033,0.90487,2765.3,2764.8,0.89889035]
[1646823774290,0.90487,2765.3,2764.9,0.029168]
[1646823774478,0.90487,2765.3,2764.7,0.3]
[1646823774677,0.90487,2765.3,2764.6,2.138688]
[1646823775079,0.90487,2765.3,2764.8,0.90476]
[1646823775478,0.90487,2765.3,2764.8,1.8605122]
[1646823777083,0.00249565,2765.2,2764.8,1.8605122]
[1646823777285,0.00249565,2765.2,2764.8,5.8418747]
[1646823777483,0.00249565,2765.2,2764.8,5.6600747]
[1646823777884,0.90471,2765.7,2764.8,5.6600747]
[1646823778127,0.00249565,2765.1,2764.8,3.8506847]
[1646823778326,0.00249565,2765.1,2764.8,3.6699847]
[1646823779128,0.90478,2765.4,2764.9,2.71398]
[1646823779330,0.00249565,2765.1,2765.0,0.90475]
[1646823779533,0.00249565,2765.1,2765.0,1.20475]
[1646823780029,0.00249565,2765.1,2765.0,0.90475]
[1646823780229,0.90478,2765.4,2765.0,1.20475]
[1646823780429,0.90486,2765.2,2765.0,1.20475]
[1646823780630,0.90486,2765.2,2765.0,0.90475]
[1646823780830,0.90735565,2765.2,2765.0,1.20475]
[1646823781232,0.90735565,2765.2,2764.6,0.029168]
[1646823781440,1.07639062,2765.1,2764.6,0.90496]
[1646823781632,0.14837301,2765.1,2764.6,0.90496]
[1646823782487,0.14837301,2765.1,2764.6,1.20496]
[1646823782687,0.14837301,2765.1,2764.6,0.90496]
[1646823782887,0.14837301,2765.1,2764.6,1.20496]
[1646823783090,0.00249565,2765.0,2764.6,0.90496]
[1646823783288,0.00249565,2765.0,2764.6,1.20496]
[1646823783890,0.37344024,2765.6,2764.6,1.20496]
[1646823783891,0.90472,2765.5,2764.6,1.20496]
[1646823784092,0.90472,2765.5,2764.6,0.934128]
[1646823784290,0.00249565,2764.9,2764.6,1.234128]
[1646823784491,0.00249565,2764.9,2764.8,0.9047217]
[1646823785091,0.90482,2765.2,2764.8,0.9047217]
[1646823785291,0.90482,2765.2,2764.9,0.90478]
[1646823785544,0.00870691,2765.6,2765.1,0.9046395]
[1646823785744,0.00870691,2765.6,2765.3,0.029168]
[1646823786342,0.18896358,2765.8,2765.3,0.029168]
[1646823786544,1.91691495,2765.9,2765.3,0.933728]
[1646823786750,1.91691495,2765.9,2765.3,2.1382586]
[1646823787042,1.91691495,2765.9,2765.3,1.233728]
[1646823787744,1.91691495,2765.9,2765.3,0.329168]
[1646823787943,0.90478,2765.6,2765.0,1.155268]
[1646823788142,0.90478,2765.6,2765.0,1.1261]
[1646823788344,0.14837301,2765.5,2765.0,1.1261]
[1646823789145,1.11034436,2765.3,2765.0,1.1261]
[1646823789382,0.9049,2765.2,2765.0,1.1261]
[1646823790382,0.90739565,2765.2,2765.0,1.1261]
[1646823791283,0.9049,2765.2,2765.0,1.1261]
[1646823791482,0.90739565,2765.2,2765.0,1.1261]
[1646823792486,0.9049,2765.2,2765.0,1.1261]
[1646823792886,1.05561392,2765.2,2765.0,1.1261]
[1646823793828,1.05327301,2765.2,2765.0,1.1261]
[1646823794029,1.09344038,2765.2,2765.0,1.1261]
[1646823794829,1.09109947,2765.2,2765.0,1.1261]
[1646823795234,1.09344038,2765.2,2765.0,1.1261]
[1646823796035,1.09109947,2765.2,2765.0,1.1261]
[1646823796236,1.09109947,2765.2,2764.7,0.029168]
[1646823796437,1.09109947,2765.2,2764.6,0.029168]
[1646823796438,1.0931634,2765.2,2764.6,0.029168]
[1646823797085,1.0931634,2765.2,2764.6,3.529168]
[1646823797282,0.03782646,2765.2,2765.1,0.029168]
[1646823798079,0.03782646,2765.2,2765.0,0.029168]
[1646823798880,0.03989039,2765.2,2765.0,0.029168]
[1646823799280,0.03736106,2765.2,2765.0,0.029168]
[1646823799483,0.03736106,2765.2,2764.8,0.029168]
[1646823799685,0.03529713,2765.2,2764.8,0.029168]
[1646823800182,0.03740649,2765.2,2764.8,0.029168]
[1646823800530,0.94223649,2765.2,2764.7,0.029168]
[1646823800932,0.94012713,2765.2,2764.7,0.029168]
[1646823801131,0.00210936,2765.1,2764.7,0.029168]
[1646823801533,1.13706158,2765.0,2764.7,0.029168]
[1646823801936,0.90497,2764.9,2764.6,0.029168]
[1646823802135,0.90497,2764.9,2764.8,3.5]
[1646823802935,0.94026713,2764.9,2764.8,3.5]
[1646823805178,0.94532579,2764.9,2764.8,3.5]
[1646823807191,0.04035579,2764.9,2764.8,3.5]
[1646823809430,0.04035579,2764.9,2764.4,0.029168]
[1646823809633,0.445,2764.8,2764.5,0.00386813]
[1646823809833,3.90536,2764.7,2764.5,0.00386813]
[1646823810038,1.81075,2764.5,2763.9,0.029168]
[1646823810231,0.445,2764.4,2763.8,0.029168]
[1646823810435,0.445,2764.4,2763.9,1.48865281]
[1646823810634,0.445,2764.4,2763.7,0.029168]
[1646823810635,0.59335863,2764.4,2763.7,0.029168]
[1646823810834,0.59335863,2764.4,2763.8,1.48865543]
[1646823810835,1.00418913,2764.1,2763.8,1.48865543]
[1646823811035,0.90529,2764.0,2763.8,1.48865543]
[1646823811236,1.09433562,2764.0,2763.8,1.48865543]
[1646823811435,1.09433562,2764.0,2763.6,0.00252933]
[1646823811636,1.39433562,2764.0,2763.6,0.00252933]
[1646823812081,2.69094651,2763.9,2763.6,0.00252933]
[1646823812281,1.811,2763.8,2763.6,0.00252933]
[1646823812479,2.256,2763.8,2763.6,0.00252933]
[1646823813079,2.29635579,2763.8,2763.6,0.00252933]
[1646823814380,2.29635579,2763.8,2763.6,0.00425396]
[1646823814381,3.0,2763.7,2763.6,0.00425396]
[1646823814581,3.445,2763.7,2763.6,0.00425396]
[1646823814787,4.445,2763.7,2763.6,0.00425396]
[1646823815184,1.63371442,2763.7,2763.6,0.00425396]
[1646823815381,1.63371442,2763.7,2763.1,0.03169733]
[1646823815633,1.63371442,2763.7,2763.1,0.00252933]
[1646823815634,1.81129,2763.6,2763.1,0.00252933]
[1646823815832,5.25629,2763.6,2763.5,0.00425402]
[1646823816033,5.29664579,2763.6,2763.5,0.00425402]
[1646823816231,6.29664579,2763.6,2763.5,0.00425402]
[1646823816434,4.0,2763.5,2763.1,0.00252933]
[1646823816634,2.25636,2763.4,2763.1,0.00252933]
[1646823817033,2.29671579,2763.4,2763.1,0.00252933]
[1646823817234,14.46070991,2763.4,2763.0,0.00505866]
[1646823817441,3.0,2763.2,2763.0,0.00505866]
[1646823817635,1.9515651,2763.1,2763.0,0.00505866]
[1646823817839,1.49918863,2763.1,2762.3,2.68110552]
[1646823818033,1.49918863,2763.1,2762.3,0.029168]
[1646823818236,1.49918863,2763.1,2761.8,0.1809]
[1646823818237,11.07,2762.3,2761.8,0.1809]
[1646823818435,11.07,2762.3,2760.9,1.79152408]
[1646823818436,11.07,2762.1,2760.9,3.5]
[1646823818638,11.07,2762.1,2761.0,1.48967646]
[1646823818639,0.90623,2761.8,2761.0,1.48967646]
[1646823818834,0.445,2761.7,2761.0,1.48967646]
[1646823819037,1.12348223,2761.6,2761.1,1.48967646]
[1646823819291,1.12348223,2761.6,2760.8,0.181]
[1646823819292,1.12348223,2761.6,2761.2,1.48967646]
[1646823819482,1.12348223,2761.6,2761.4,0.00425337]
[1646823820280,1.12348223,2761.6,2760.9,1.16894193]
[1646823820488,0.90629,2761.5,2760.9,1.16894193]
[1646823821486,0.90629,2761.5,2760.8,0.3]
[1646823821686,0.90629,2761.5,2760.5,0.3]
[1646823821887,0.90629,2761.5,2760.6,1.48986005]
[1646823822286,0.90629,2761.5,2760.6,4.98986005]
[1646823822486,0.90629,2761.5,2760.8,1.18562659]
[1646823823643,0.90629,2761.5,2760.9,3.5]
[1646823823845,5.51483474,2761.9,2760.9,3.8625]
[1646823824143,5.51483474,2761.9,2761.0,0.00425526]
[1646823824940,5.51483474,2761.9,2760.9,4.1625]
[1646823825150,5.51483474,2761.9,2761.0,2.75817798]
[1646823825443,5.51483474,2761.9,2761.3,0.00425488]
[1646823825649,0.14796893,2762.5,2761.3,3.86675488]
[1646823825845,0.14796893,2762.5,2761.3,3.50425488]
[1646823826045,1.20988187,2762.5,2761.9,1.21475485]
[1646823826446,1.05380893,2762.5,2761.9,1.21475485]
[1646823826646,1.05380893,2762.5,2761.9,3.02624745]
[1646823827782,1.05380893,2762.5,2762.1,0.00425393]
[1646823828384,0.90584,2762.5,2762.1,0.00425393]
[1646823828584,0.90584,2762.5,2762.1,0.90999803]
[1646823828787,0.90584,2762.5,2762.1,0.9057441]
[1646823828987,0.90584,2762.5,2762.2,0.00411024]
[1646823829887,0.90584,2762.5,2761.5,1.81174]
[1646823829888,1.05380893,2762.5,2761.5,1.81174]
[1646823830285,1.05380893,2762.5,2762.2,0.00411018]
[1646823830531,1.01100505,2762.3,2762.2,0.00411018]
[1646823830737,1.91691505,2762.3,2762.2,0.00411018]
[1646823831036,1.91691505,2762.3,2761.7,4.40591]
[1646823831037,0.90591,2762.3,2761.7,4.40591]
[1646823831234,0.14796893,2762.5,2761.7,0.90591]
[1646823831434,0.14796893,2762.5,2762.1,0.0041103]
[1646823832235,2.83753561,2762.6,2762.1,0.0041103]
[1646823832436,0.00096,2763.0,2762.0,0.90581]
[1646823832636,9.087,2763.3,2761.8,0.3]
[1646823832637,2.83721203,2762.9,2761.8,0.3]
[1646823832838,0.90571,2762.7,2762.2,0.00396849]
[1646823833538,2.0,2762.4,2761.4,1.216]
[1646823833736,0.445,2762.3,2761.4,1.216]
[1646823833937,0.445,2762.3,2761.3,0.1809]
[1646823834135,0.029168,2762.1,2761.3,0.1809]
[1646823834384,0.90615,2761.9,2761.3,0.1809]
[1646823834587,0.90615,2761.9,2760.7,4.4466]
[1646823834588,1.42056003,2761.8,2760.7,4.4466]
[1646823834790,1.42056003,2761.8,2760.7,3.5403]
[1646823834983,1.42056003,2761.8,2760.7,1.1502]
[1646823835186,3.0,2761.6,2760.7,1.1502]
[1646823835385,0.445,2761.5,2760.4,4.4062778]
[1646823835589,1.08388757,2761.2,2760.7,1.268618]
[1646823835792,1.08388757,2761.2,2760.7,0.906118]
[1646823836388,2.81261,2761.6,2760.8,0.00426676]
[1646823836587,1.0,2761.6,2760.8,0.00426676]
[1646823836788,0.90605,2761.7,2761.0,2.718204]
[1646823836990,0.90605,2761.7,2761.1,1.8121]
[1646823837391,0.86642696,2761.4,2761.1,1.8121]
[1646823837589,0.86642696,2761.4,2761.2,0.00400406]
[1646823837790,0.86642696,2761.4,2761.2,0.91002776]
[1646823838032,1.088,2761.3,2761.2,0.91002776]
[1646823838436,1.088,2761.3,2761.2,0.9060237]
[1646823839936,1.088,2761.3,2761.1,2.72211698]
[1646823840137,1.088,2761.2,2761.1,2.72211698]
[1646823840945,1.088,2761.2,2761.1,2.7181128]
[1646823841142,1.088,2761.4,2761.1,2.7181128]
[1646823842183,1.088,2761.4,2761.2,0.90603]
[1646823842380,1.029168,2761.9,2761.2,0.90603]
[1646823842381,1.088,2761.3,2761.2,0.90603]
[1646823842581,1.088,2761.3,2761.2,1.20603]
[1646823843080,0.972685,2762.3,2761.7,0.96255531]
[1646823843280,0.972685,2762.3,2761.7,0.90575]
[1646823843681,0.972685,2762.3,2761.7,1.20575]
[1646823844283,0.90589,2762.2,2761.7,1.20575]
[1646823844780,0.90589,2762.2,2761.9,0.00398785]
[1646823844982,0.972685,2762.3,2761.9,0.00398785]
[1646823845182,0.972685,2762.3,2761.9,0.90976555]
[1646823845637,0.972685,2762.3,2761.9,0.9057777]
[1646823846038,0.972685,2762.3,2762.0,0.90977878]
[1646823846438,0.029168,2762.3,2762.0,0.90977878]
[1646823846837,0.029168,2762.3,2762.0,0.90579]
[1646823847337,0.029168,2762.3,2762.0,1.20977872]
[1646823847740,1.17868466,2762.3,2762.0,1.20977872]
[1646823848139,0.029168,2762.3,2762.0,1.20579]
[1646823848547,0.18917392,2762.4,2762.0,1.20579]
[1646823849140,1.01671144,2762.2,2762.0,1.20579]
[1646823849385,0.18917392,2762.4,2762.0,1.20579]
[1646823849586,0.18917392,2762.4,2762.1,0.00399103]
[1646823850589,1.38503212,2762.4,2762.0,0.90579]
[1646823850989,1.38503212,2762.4,2762.1,0.00399104]
[1646823851790,1.38503212,2762.4,2762.0,1.20579]
[1646823851990,1.38503212,2762.4,2762.1,0.00399104]
[1646823853031,1.38503212,2762.4,2762.1,0.00399096]
[1646823853234,0.18917392,2762.4,2762.1,0.00399096]
[1646823854035,0.18917392,2762.4,2762.0,1.20579]
[1646823854238,1.17153398,2762.2,2762.1,0.00399096]
[1646823854633,1.20070198,2762.2,2762.1,0.00399096]
[1646823855434,2.10663198,2762.2,2761.9,0.90586]
[1646823856041,1.20070198,2762.2,2762.0,0.9057698]
[1646823856885,1.17153398,2762.2,2762.0,0.90961717]
[1646823857684,1.17153398,2762.2,2762.0,0.9057698]
[1646823857887,1.17153398,2762.2,2762.0,0.90961717]
[1646823858888,1.17153398,2762.2,2762.0,0.9057698]
[1646823859090,1.17153398,2762.2,2762.0,0.90961717]
[1646823859889,0.18917392,2762.4,2762.0,0.90961717]
[1646823860087,0.18917392,2762.4,2762.0,0.9057698]
[1646823860387,0.18917392,2762.4,2762.0,0.9100344]
[1646823861235,0.18917392,2762.4,2762.0,0.9057698]
[1646823861438,1.10375718,2762.2,2762.0,0.9057698]
[1646823861642,1.10375718,2762.2,2762.1,0.00426447]
[1646823862237,0.18917392,2762.4,2762.1,0.00426447]
[1646823862739,0.18917392,2762.4,2762.1,0.90579]
[1646823863137,0.934988,2762.5,2762.1,1.20579]
[1646823863339,0.934988,2762.5,2762.1,3.0172475]
[1646823863937,0.934988,2762.5,2762.1,3.94289417]
[1646823864138,0.029168,2762.5,2762.2,4.7057217]
[1646823864388,1.18916787,2762.8,2762.3,1.8518905]
[1646823864389,0.18916787,2762.8,2762.3,1.8518905]
[1646823864584,0.04035579,2763.2,2762.4,4.9893905]
[1646823864585,0.04131579,2763.2,2762.4,4.9893905]
[1646823864786,0.04131579,2763.2,2762.5,1.4893905]
[1646823864787,0.04035579,2763.2,2762.5,1.4893905]
[1646823864984,0.04035579,2763.2,2762.6,3.5]
[1646823865285,0.04035579,2763.2,2762.8,1.19479567]
[1646823865484,0.04035579,2763.2,2762.9,5.310513]
[1646823865890,0.04035579,2763.2,2762.9,5.610513]
[1646823866289,0.18912455,2763.6,2763.4,0.97440411]
[1646823866491,0.00917113,2763.9,2763.5,3.5]
[1646823867186,0.00917113,2763.9,2763.4,3.08480061]
[1646823867389,1.17489022,2764.2,2763.4,3.08480061]
[1646823867588,1.1769934,2764.2,2763.4,3.08480061]
[1646823867789,1.1769934,2764.2,2763.5,3.5]
[1646823867790,0.00210318,2764.2,2763.5,3.5]
[1646823868032,0.00210318,2764.2,2763.5,6.5154383]
[1646823868230,0.00210318,2764.2,2763.5,6.0911483]
[1646823868631,0.029168,2764.3,2763.5,6.0911483]
[1646823868931,0.029168,2764.3,2763.9,1.03086609]
[1646823869133,0.0021033,2764.2,2763.9,3.74594519]
[1646823869331,0.0021033,2764.2,2763.9,3.0150791]
[1646823869634,0.0021033,2764.2,2763.9,3.9201091]
[1646823869831,0.0011033,2764.2,2763.9,3.9201091]
[1646823870132,0.00210345,2764.2,2763.9,3.9201091]
[1646823871137,0.00210345,2764.2,2764.0,3.8]